[Event "*** Titled Tuesday Blitz"]
[Site "Chess.com"]
[Date "2020.02.04"]
[Round "8"]
[White "Abund"]
[Black "Kira170"]
[Result "0-1"]
[WhiteElo "2704"]
[BlackElo "2544"]
[TimeControl "180+2"]
[EndTime "14:56:06 PST"]
[Termination "Kira170 won by resignation"]

1. Nf3 {[%clk 0:03:01.9]} 1... Nf6 {[%clk 0:02:59.9]} 2. c4 {[%clk 0:03:02.6]}
2... e6 {[%clk 0:03:01.3]} 3. Nc3 {[%clk 0:03:03.8]} 3... d5 {[%clk 0:03:02.9]}
4. d4 {[%clk 0:03:05.1]} 4... c6 {[%clk 0:03:02.6]} 5. e3 {[%clk 0:02:58.9]}
5... Nbd7 {[%clk 0:03:03.5]} 6. Qc2 {[%clk 0:02:58.9]} 6... Bd6 {[%clk
0:03:04.3]} 7. b3 {[%clk 0:03:00]} 7... O-O {[%clk 0:03:01.6]} 8. Bd3 {[%clk
0:03:01]} 8... e5 {[%clk 0:02:58.8]} 9. cxd5 {[%clk 0:03:01.7]} 9... cxd5 {[%clk
0:02:59.4]} 10. Nb5 {[%clk 0:02:53.7]} 10... Bb8 {[%clk 0:02:59.8]} 11. dxe5
{[%clk 0:02:50.7]} 11... Nxe5 {[%clk 0:03:01.7]} 12. Nxe5 {[%clk 0:02:49.9]}
12... Bxe5 {[%clk 0:03:03.6]} 13. Bb2 {[%clk 0:02:49]} 13... Bxb2 {[%clk
0:03:02.2]} 14. Qxb2 {[%clk 0:02:49.2]} 14... a6 {[%clk 0:01:57.2]} 15. Nd4
{[%clk 0:02:45.6]} 15... Ne4 {[%clk 0:01:58.7]} 16. Bxe4 {[%clk 0:02:37.3]}
16... dxe4 {[%clk 0:01:59]} 17. O-O {[%clk 0:02:38.4]} 17... Qg5 {[%clk
0:02:00.1]} 18. Kh1 {[%clk 0:02:37.3]} 18... Bg4 {[%clk 0:02:00.5]} 19. Rac1
{[%clk 0:02:35.7]} 19... Rac8 {[%clk 0:02:01.3]} 20. Rxc8 {[%clk 0:02:35]} 20...
Rxc8 {[%clk 0:02:03.2]} 21. Rc1 {[%clk 0:02:35]} 21... Rd8 {[%clk 0:02:04.4]}
22. b4 {[%clk 0:02:25.6]} 22... h5 {[%clk 0:02:04.4]} 23. Rc5 {[%clk 0:02:23.8]}
23... Qg6 {[%clk 0:01:48]} 24. Qc2 {[%clk 0:02:08]} 24... h4 {[%clk 0:01:48.6]}
25. h3 {[%clk 0:02:07.4]} 25... Bd7 {[%clk 0:01:49.9]} 26. Re5 {[%clk
0:01:34.1]} 26... Qd6 {[%clk 0:01:40.6]} 27. Qxe4 {[%clk 0:01:25]} 27... Qxb4
{[%clk 0:01:41.1]} 28. Qxh4 {[%clk 0:01:20.4]} 28... Rc8 {[%clk 0:01:42.4]} 29.
Rh5 {[%clk 0:01:16.4]} 29... f6 {[%clk 0:01:24.9]} 30. Rh8+ {[%clk 0:00:48.1]}
30... Kf7 {[%clk 0:01:25.5]} 31. Qh5+ {[%clk 0:00:47]} 31... Ke7 {[%clk
0:01:26.6]} 32. Rxc8 {[%clk 0:00:47.2]} 32... Bxc8 {[%clk 0:01:27.8]} 33. Kh2
{[%clk 0:00:33.1]} 33... Qc4 {[%clk 0:01:14]} 34. Qh8 {[%clk 0:00:20.7]} 34...
Kf7 {[%clk 0:01:14.4]} 35. Qh5+ {[%clk 0:00:20.5]} 35... Ke7 {[%clk 0:01:14.6]}
36. a3 {[%clk 0:00:20.9]} 36... Bd7 {[%clk 0:01:13]} 37. Qh8 {[%clk 0:00:20.3]}
37... Kf7 {[%clk 0:01:13.9]} 38. Qd8 {[%clk 0:00:20.4]} 38... Qd5 {[%clk
0:00:41]} 39. Qb6 {[%clk 0:00:16.9]} 39... Qe5+ {[%clk 0:00:29.6]} 40. Kg1
{[%clk 0:00:15.1]} 40... Qe4 {[%clk 0:00:29.4]} 41. Qc7 {[%clk 0:00:11.9]} 41...
Qd5 {[%clk 0:00:27.5]} 42. Qb6 {[%clk 0:00:12.4]} 42... Qe4 {[%clk 0:00:28.3]}
43. Qd6 {[%clk 0:00:13.2]} 43... Ke8 {[%clk 0:00:21.7]} 44. Qb8+ {[%clk
0:00:09.1]} 44... Ke7 {[%clk 0:00:23.1]} 45. Qg8 {[%clk 0:00:09.4]} 45... Qg6
{[%clk 0:00:24.3]} 46. Qd5 {[%clk 0:00:10]} 46... Qb1+ {[%clk 0:00:23.1]} 47.
Kh2 {[%clk 0:00:10.8]} 47... Qb6 {[%clk 0:00:22.6]} 48. f4 {[%clk 0:00:11]}
48... Qd6 {[%clk 0:00:23.2]} 49. Qe4+ {[%clk 0:00:08.3]} 49... Kd8 {[%clk
0:00:23.3]} 50. Qxb7 {[%clk 0:00:08.3]} 50... Qxa3 {[%clk 0:00:24.2]} 51. Qb8+
{[%clk 0:00:08.4]} 51... Ke7 {[%clk 0:00:24.5]} 52. Qa7 {[%clk 0:00:09.5]} 52...
Ke8 {[%clk 0:00:19.6]} 53. Qb8+ {[%clk 0:00:10]} 53... Ke7 {[%clk 0:00:21]} 54.
Qb6 {[%clk 0:00:10.6]} 54... Qd6 {[%clk 0:00:20.1]} 55. Qa5 {[%clk 0:00:09.9]}
55... Kf7 {[%clk 0:00:19.1]} 56. Nb3 {[%clk 0:00:10.3]} 56... Bb5 {[%clk
0:00:19.1]} 57. Nd4 {[%clk 0:00:11.5]} 57... Bd7 {[%clk 0:00:19.3]} 58. Qa2+
{[%clk 0:00:12.3]} 58... Ke8 {[%clk 0:00:19.3]} 59. Qg8+ {[%clk 0:00:13]} 59...
Qf8 {[%clk 0:00:20.6]} 60. Qd5 {[%clk 0:00:13.8]} 60... Qa3 {[%clk 0:00:19.8]}
61. e4 {[%clk 0:00:10.6]} 61... a5 {[%clk 0:00:19.5]} 62. e5 {[%clk 0:00:08.8]}
62... fxe5 {[%clk 0:00:20.2]} 63. fxe5 {[%clk 0:00:10.1]} 63... Qe7 {[%clk
0:00:18.6]} 64. e6 {[%clk 0:00:10.4]} 64... Bc8 {[%clk 0:00:19.7]} 65. Qc6+
{[%clk 0:00:09.9]} 65... Kd8 {[%clk 0:00:21]} 66. Qb6+ {[%clk 0:00:11]} 66...
Qc7+ {[%clk 0:00:22.2]} 67. Qxc7+ {[%clk 0:00:10.1]} 67... Kxc7 {[%clk
0:00:24.1]} 68. Kg3 {[%clk 0:00:07.7]} 68... Kd6 {[%clk 0:00:24.1]} 69. Nf5+
{[%clk 0:00:05.4]} 69... Kxe6 {[%clk 0:00:25.3]} 70. Nxg7+ {[%clk 0:00:06.2]}
70... Ke5 {[%clk 0:00:21.1]} 71. Kf2 {[%clk 0:00:04.7]} 71... a4 {[%clk
0:00:21]} 72. Nf5 {[%clk 0:00:03.3]} 72... Bxf5 {[%clk 0:00:21.1]} 73. Ke3
{[%clk 0:00:03.5]} 73... a3 {[%clk 0:00:22.2]} 74. Kd2 {[%clk 0:00:04.6]} 74...
a2 {[%clk 0:00:23.2]} 75. g4 {[%clk 0:00:04.7]} 75... a1=Q {[%clk 0:00:24]} 76.
gxf5 {[%clk 0:00:05.9]} 76... Kxf5 {[%clk 0:00:25.6]} 0-1

[Event "*** Titled Tuesday Blitz"]
[Site "Chess.com"]
[Date "2020.02.04"]
[Round "8"]
[White "Sanan_Sjugirov"]
[Black "kleinebeer98"]
[Result "1-0"]
[WhiteElo "2848"]
[BlackElo "2717"]
[TimeControl "180+2"]
[EndTime "14:56:39 PST"]
[Termination "Sanan_Sjugirov won by checkmate"]

1. e4 {[%clk 0:03:01.9]} 1... e5 {[%clk 0:02:59.3]} 2. Nf3 {[%clk 0:03:02.7]}
2... Nc6 {[%clk 0:03:00.8]} 3. Bb5 {[%clk 0:03:03.7]} 3... f5 {[%clk 0:03:02.2]}
4. d3 {[%clk 0:03:01.7]} 4... fxe4 {[%clk 0:03:03.6]} 5. dxe4 {[%clk 0:03:03.6]}
5... Nf6 {[%clk 0:03:05.1]} 6. O-O {[%clk 0:03:03.6]} 6... d6 {[%clk 0:03:06.4]}
7. Qd3 {[%clk 0:02:59.8]} 7... Be7 {[%clk 0:03:07.6]} 8. Qc4 {[%clk 0:02:57.4]}
8... Bg4 {[%clk 0:03:08.3]} 9. Ng5 {[%clk 0:02:52.7]} 9... Rf8 {[%clk
0:02:58.7]} 10. Bxc6+ {[%clk 0:02:45.7]} 10... bxc6 {[%clk 0:02:59.4]} 11. Qxc6+
{[%clk 0:02:47.6]} 11... Bd7 {[%clk 0:02:59.7]} 12. Qc4 {[%clk 0:02:46.5]} 12...
Qc8 {[%clk 0:02:58.7]} 13. Nc3 {[%clk 0:02:42.2]} 13... h6 {[%clk 0:02:58.9]}
14. Nf3 {[%clk 0:02:43.3]} 14... c6 {[%clk 0:02:57.5]} 15. Be3 {[%clk
0:02:36.9]} 15... Be6 {[%clk 0:02:57]} 16. Qa4 {[%clk 0:02:37.1]} 16... Kf7
{[%clk 0:02:49.6]} 17. Ne2 {[%clk 0:02:03.7]} 17... Bg4 {[%clk 0:02:36]} 18. Ng3
{[%clk 0:02:01]} 18... Kg8 {[%clk 0:02:19.8]} 19. Nh4 {[%clk 0:01:49.9]} 19...
Kh7 {[%clk 0:02:02.8]} 20. Nhf5 {[%clk 0:01:43.4]} 20... Qe6 {[%clk 0:01:52.8]}
21. f3 {[%clk 0:01:26.8]} 21... Bxf5 {[%clk 0:01:53.6]} 22. Nxf5 {[%clk
0:01:28.7]} 22... Rfb8 {[%clk 0:01:55]} 23. b3 {[%clk 0:01:26.1]} 23... d5
{[%clk 0:01:53.5]} 24. c3 {[%clk 0:01:16.6]} 24... Bf8 {[%clk 0:01:49.3]} 25.
Rad1 {[%clk 0:01:13.4]} 25... a5 {[%clk 0:01:47.3]} 26. Ng3 {[%clk 0:01:04.9]}
26... d4 {[%clk 0:01:41.4]} 27. cxd4 {[%clk 0:00:55.7]} 27... Rb4 {[%clk
0:01:42.5]} 28. Qa3 {[%clk 0:00:54.6]} 28... a4 {[%clk 0:01:40.9]} 29. dxe5
{[%clk 0:00:34.8]} 29... Rxe4 {[%clk 0:01:36.3]} 30. Qc1 {[%clk 0:00:34.3]}
30... Rxe5 {[%clk 0:01:37.1]} 31. Bd4 {[%clk 0:00:32.6]} 31... Rd5 {[%clk
0:01:22.2]} 32. Rfe1 {[%clk 0:00:32.3]} 32... Qf7 {[%clk 0:01:05.7]} 33. Qxc6
{[%clk 0:00:28.7]} 33... Rad8 {[%clk 0:01:05.6]} 34. Qc2+ {[%clk 0:00:27.3]}
34... Qg6 {[%clk 0:00:56.7]} 35. Qc4 {[%clk 0:00:17.9]} 35... Bc5 {[%clk
0:00:42.4]} 36. Ne2 {[%clk 0:00:15.6]} 36... axb3 {[%clk 0:00:42]} 37. axb3
{[%clk 0:00:16.4]} 37... Ba7 {[%clk 0:00:19]} 38. Kf1 {[%clk 0:00:13.8]} 38...
Bxd4 {[%clk 0:00:14.5]} 39. Rxd4 {[%clk 0:00:13.8]} 39... Rxd4 {[%clk
0:00:12.5]} 40. Nxd4 {[%clk 0:00:15.7]} 40... Nh5 {[%clk 0:00:11.3]} 41. Ne6
{[%clk 0:00:13.7]} 41... Re8 {[%clk 0:00:08.6]} 42. Qe4 {[%clk 0:00:08.1]} 42...
Qxe4 {[%clk 0:00:07.3]} 43. Rxe4 {[%clk 0:00:10]} 43... Ra8 {[%clk 0:00:08.1]}
44. b4 {[%clk 0:00:06.9]} 44... Nf6 {[%clk 0:00:07.1]} 45. Re2 {[%clk
0:00:07.4]} 45... Ra1+ {[%clk 0:00:07.7]} 46. Kf2 {[%clk 0:00:08.3]} 46... Rb1
{[%clk 0:00:08.9]} 47. Rc2 {[%clk 0:00:06.9]} 47... Rxb4 {[%clk 0:00:08.6]} 48.
Rc7 {[%clk 0:00:07.8]} 48... Rb2+ {[%clk 0:00:05.8]} 49. Kg3 {[%clk 0:00:08.7]}
49... Kg6 {[%clk 0:00:05.3]} 50. Rxg7+ {[%clk 0:00:08.1]} 50... Kf5 {[%clk
0:00:06.7]} 51. Nd4+ {[%clk 0:00:07.4]} 51... Ke5 {[%clk 0:00:08]} 52. Nc6+
{[%clk 0:00:07.9]} 52... Kf5 {[%clk 0:00:08.9]} 53. Kh3 {[%clk 0:00:07.8]} 53...
h5 {[%clk 0:00:08.2]} 54. Nd4+ {[%clk 0:00:08.3]} 54... Ke5 {[%clk 0:00:08.6]}
55. Nc6+ {[%clk 0:00:09.2]} 55... Kf5 {[%clk 0:00:10]} 56. Nd4+ {[%clk
0:00:09.6]} 56... Ke5 {[%clk 0:00:11.1]} 57. Rf7 {[%clk 0:00:09.7]} 57... Nd5
{[%clk 0:00:09.7]} 58. Nc6+ {[%clk 0:00:10.9]} 58... Ke6 {[%clk 0:00:11]} 59.
Rf8 {[%clk 0:00:11.5]} 59... Rb6 {[%clk 0:00:08.9]} 60. Nd4+ {[%clk 0:00:12.1]}
60... Ke5 {[%clk 0:00:10.3]} 61. Ne2 {[%clk 0:00:13.4]} 61... Rb2 {[%clk
0:00:11]} 62. Re8+ {[%clk 0:00:14]} 62... Kf5 {[%clk 0:00:11.3]} 63. Kg3 {[%clk
0:00:14]} 63... Nf6 {[%clk 0:00:10.2]} 64. Nd4+ {[%clk 0:00:15.2]} 64... Kg6
{[%clk 0:00:10.4]} 65. Re5 {[%clk 0:00:15.7]} 65... Rd2 {[%clk 0:00:09.3]} 66.
Ne6 {[%clk 0:00:15.7]} 66... Ra2 {[%clk 0:00:05.2]} 67. Nf4+ {[%clk 0:00:16.6]}
67... Kh6 {[%clk 0:00:07.1]} 68. Re6 {[%clk 0:00:16.3]} 68... Kg5 {[%clk
0:00:08.5]} 69. Re5+ {[%clk 0:00:15.6]} 69... Kh6 {[%clk 0:00:09.5]} 70. h4
{[%clk 0:00:17.1]} 70... Ra3 {[%clk 0:00:07.4]} 71. Re6 {[%clk 0:00:17.1]} 71...
Kg7 {[%clk 0:00:07.9]} 72. Re7+ {[%clk 0:00:17.9]} 72... Kh6 {[%clk 0:00:08.8]}
73. Re6 {[%clk 0:00:15.6]} 73... Kg7 {[%clk 0:00:08.9]} 74. Kh3 {[%clk 0:00:16]}
74... Ra1 {[%clk 0:00:06.4]} 75. Re7+ {[%clk 0:00:16]} 75... Kh6 {[%clk
0:00:07.3]} 76. Re5 {[%clk 0:00:15.8]} 76... Ra3 {[%clk 0:00:06.1]} 77. Rf5
{[%clk 0:00:16.3]} 77... Kg7 {[%clk 0:00:07.1]} 78. Nxh5+ {[%clk 0:00:16.6]}
78... Kg6 {[%clk 0:00:06.2]} 79. Rxf6+ {[%clk 0:00:16]} 79... Kxh5 {[%clk
0:00:07.2]} 80. g4# {[%clk 0:00:17]} 1-0

[Event "*** Titled Tuesday Blitz"]
[Site "Chess.com"]
[Date "2020.02.04"]
[Round "8"]
[White "DanielDardha2005"]
[Black "SantoBlue"]
[Result "1-0"]
[WhiteElo "2697"]
[BlackElo "2816"]
[TimeControl "180+2"]
[EndTime "14:57:47 PST"]
[Termination "DanielDardha2005 won by checkmate"]

1. Nf3 {[%clk 0:03:01.9]} 1... d5 {[%clk 0:02:59.8]} 2. g3 {[%clk 0:03:02.4]}
2... c5 {[%clk 0:03:00]} 3. Bg2 {[%clk 0:03:03.5]} 3... Nc6 {[%clk 0:03:01.1]}
4. d4 {[%clk 0:03:04.5]} 4... Nf6 {[%clk 0:03:02.3]} 5. O-O {[%clk 0:03:04.6]}
5... e6 {[%clk 0:03:02.8]} 6. c4 {[%clk 0:03:05.8]} 6... Be7 {[%clk 0:03:02.3]}
7. cxd5 {[%clk 0:03:06.4]} 7... exd5 {[%clk 0:03:02.8]} 8. dxc5 {[%clk
0:03:07.2]} 8... Bxc5 {[%clk 0:03:02.3]} 9. Nc3 {[%clk 0:03:08.2]} 9... O-O
{[%clk 0:03:02.3]} 10. Bg5 {[%clk 0:03:08.9]} 10... Be6 {[%clk 0:03:03.3]} 11.
Bxf6 {[%clk 0:03:01.9]} 11... Qxf6 {[%clk 0:03:03.8]} 12. Nxd5 {[%clk 0:03:03]}
12... Qxb2 {[%clk 0:03:02.5]} 13. Nc7 {[%clk 0:03:00.4]} 13... Rad8 {[%clk
0:03:03]} 14. Qc1 {[%clk 0:02:59.2]} 14... Qxc1 {[%clk 0:02:28.9]} 15. Raxc1
{[%clk 0:02:57.5]} 15... Bb6 {[%clk 0:02:25.3]} 16. Nxe6 {[%clk 0:02:58.3]}
16... fxe6 {[%clk 0:02:27.2]} 17. Rfd1 {[%clk 0:02:56.6]} 17... Rxd1+ {[%clk
0:02:25.1]} 18. Rxd1 {[%clk 0:02:58.5]} 18... Rd8 {[%clk 0:02:27]} 19. Rxd8+
{[%clk 0:02:58]} 19... Bxd8 {[%clk 0:02:27.7]} 20. e3 {[%clk 0:02:51.9]} 20...
Bf6 {[%clk 0:02:24.2]} 21. Bf1 {[%clk 0:02:43.2]} 21... Kf8 {[%clk 0:02:22.9]}
22. Bd3 {[%clk 0:02:40.6]} 22... h6 {[%clk 0:02:21.6]} 23. Kf1 {[%clk
0:02:41.8]} 23... Ke7 {[%clk 0:02:18.6]} 24. Ke2 {[%clk 0:02:42.8]} 24... Kd6
{[%clk 0:02:20.2]} 25. Nd2 {[%clk 0:02:39.4]} 25... Kc5 {[%clk 0:01:49.8]} 26.
Bc4 {[%clk 0:02:40.1]} 26... e5 {[%clk 0:01:44.2]} 27. Kd3 {[%clk 0:02:35.4]}
27... b5 {[%clk 0:01:43.2]} 28. Ne4+ {[%clk 0:02:27.9]} 28... Kb6 {[%clk
0:01:44.5]} 29. Be6 {[%clk 0:02:23.8]} 29... Be7 {[%clk 0:01:45.1]} 30. h4
{[%clk 0:02:21]} 30... a5 {[%clk 0:01:45.2]} 31. h5 {[%clk 0:02:21.4]} 31... a4
{[%clk 0:01:45.8]} 32. Kc2 {[%clk 0:02:12.7]} 32... Nb4+ {[%clk 0:01:46.5]} 33.
Kc3 {[%clk 0:02:06.6]} 33... Na6 {[%clk 0:01:47.6]} 34. g4 {[%clk 0:02:01.8]}
34... Bb4+ {[%clk 0:01:47.8]} 35. Kc2 {[%clk 0:02:01]} 35... Be7 {[%clk
0:01:47.8]} 36. f4 {[%clk 0:02:00.4]} 36... exf4 {[%clk 0:01:48.2]} 37. exf4
{[%clk 0:02:02.3]} 37... Nb4+ {[%clk 0:01:48.8]} 38. Kd2 {[%clk 0:01:58.7]}
38... Nc6 {[%clk 0:01:48.4]} 39. g5 {[%clk 0:01:56.3]} 39... Nd4 {[%clk
0:01:48.8]} 40. gxh6 {[%clk 0:01:52.3]} 40... gxh6 {[%clk 0:01:49.8]} 41. Bg4
{[%clk 0:01:39.3]} 41... b4 {[%clk 0:01:49.7]} 42. f5 {[%clk 0:01:38.3]} 42...
b3 {[%clk 0:01:45.7]} 43. axb3 {[%clk 0:01:39.4]} 43... Bb4+ {[%clk 0:01:46.9]}
44. Kc1 {[%clk 0:01:28.5]} 44... Ba3+ {[%clk 0:01:17.6]} 45. Kb1 {[%clk
0:01:28.4]} 45... axb3 {[%clk 0:01:18]} 46. f6 {[%clk 0:01:23.9]} 46... Kc6
{[%clk 0:01:12.5]} 47. Bd1 {[%clk 0:01:20.2]} 47... Kd5 {[%clk 0:01:02]} 48. Nd2
{[%clk 0:01:15.5]} 48... b2 {[%clk 0:00:58.5]} 49. f7 {[%clk 0:01:02.3]} 49...
Nb5 {[%clk 0:00:56]} 50. Bf3+ {[%clk 0:00:42.2]} 50... Ke6 {[%clk 0:00:56.1]}
51. Ne4 {[%clk 0:00:38.7]} 51... Kxf7 {[%clk 0:00:54.3]} 52. Be2 {[%clk
0:00:35.9]} 52... Nd4 {[%clk 0:00:53.6]} 53. Bc4+ {[%clk 0:00:36.9]} 53... Ke7
{[%clk 0:00:55.2]} 54. Ka2 {[%clk 0:00:33.1]} 54... Nf5 {[%clk 0:00:43.1]} 55.
Bd3 {[%clk 0:00:31.3]} 55... Ne3 {[%clk 0:00:41.5]} 56. Kxa3 {[%clk 0:00:29.8]}
56... Nd5 {[%clk 0:00:37]} 57. Ng3 {[%clk 0:00:22.4]} 57... Nf4 {[%clk
0:00:35.7]} 58. Bc2 {[%clk 0:00:21.6]} 58... Kf6 {[%clk 0:00:36.3]} 59. Kxb2
{[%clk 0:00:20.6]} 59... Kg5 {[%clk 0:00:37.4]} 60. Bd1 {[%clk 0:00:21.9]} 60...
Kh4 {[%clk 0:00:38.3]} 61. Nf5+ {[%clk 0:00:22.6]} 61... Kg5 {[%clk 0:00:39.7]}
62. Ng7 {[%clk 0:00:23.7]} 62... Kf6 {[%clk 0:00:41.1]} 63. Ne8+ {[%clk
0:00:24.9]} 63... Kg5 {[%clk 0:00:42.5]} 64. Nd6 {[%clk 0:00:24.6]} 64... Nxh5
{[%clk 0:00:42]} 65. Kc3 {[%clk 0:00:26.5]} 65... Ng3 {[%clk 0:00:42.2]} 66. Kd4
{[%clk 0:00:27]} 66... Kf4 {[%clk 0:00:41.8]} 67. Nc4 {[%clk 0:00:25.5]} 67...
h5 {[%clk 0:00:43.1]} 68. Ne5 {[%clk 0:00:23.2]} 68... h4 {[%clk 0:00:43.4]} 69.
Nd3+ {[%clk 0:00:24.6]} 69... Kg5 {[%clk 0:00:39.5]} 70. Ke3 {[%clk 0:00:25.6]}
70... h3 {[%clk 0:00:39.8]} 71. Ne5 {[%clk 0:00:24.3]} 71... Nf1+ {[%clk
0:00:24.8]} 72. Kf2 {[%clk 0:00:24.5]} 72... Kf4 {[%clk 0:00:19]} 73. Nd3+
{[%clk 0:00:22.1]} 73... Ke4 {[%clk 0:00:20.1]} 74. Nc5+ {[%clk 0:00:14.2]}
74... Kd4 {[%clk 0:00:18.6]} 75. Nb3+ {[%clk 0:00:15.1]} 75... Kd3 {[%clk
0:00:13.9]} 76. Kxf1 {[%clk 0:00:17]} 76... h2 {[%clk 0:00:15.3]} 77. Kg2 {[%clk
0:00:18]} 77... h1=Q+ {[%clk 0:00:17.2]} 78. Kxh1 {[%clk 0:00:19.2]} 78... Kc3
{[%clk 0:00:19.1]} 79. Kg2 {[%clk 0:00:20.4]} 79... Kd3 {[%clk 0:00:21]} 80. Kf2
{[%clk 0:00:21.4]} 80... Kc3 {[%clk 0:00:22.6]} 81. Ke3 {[%clk 0:00:22.4]} 81...
Kc4 {[%clk 0:00:24.5]} 82. Kd2 {[%clk 0:00:22.4]} 82... Kb4 {[%clk 0:00:25.5]}
83. Kd3 {[%clk 0:00:23.4]} 83... Kb5 {[%clk 0:00:26.7]} 84. Kc3 {[%clk
0:00:24.3]} 84... Kc6 {[%clk 0:00:28.2]} 85. Kd4 {[%clk 0:00:25.5]} 85... Kd6
{[%clk 0:00:30.1]} 86. Nc5 {[%clk 0:00:26.7]} 86... Ke7 {[%clk 0:00:31.4]} 87.
Ke5 {[%clk 0:00:27.4]} 87... Kf7 {[%clk 0:00:33.1]} 88. Ne6 {[%clk 0:00:28.8]}
88... Kg6 {[%clk 0:00:34.3]} 89. Bc2+ {[%clk 0:00:22.3]} 89... Kf7 {[%clk
0:00:35.5]} 90. Bf5 {[%clk 0:00:22.7]} 90... Kg8 {[%clk 0:00:33.9]} 91. Kf6
{[%clk 0:00:23.5]} 91... Kh8 {[%clk 0:00:35.8]} 92. Ng5 {[%clk 0:00:23.9]} 92...
Kg8 {[%clk 0:00:37.7]} 93. Nf7 {[%clk 0:00:25.8]} 93... Kf8 {[%clk 0:00:38.9]}
94. Bh7 {[%clk 0:00:27.7]} 94... Ke8 {[%clk 0:00:39.7]} 95. Ne5 {[%clk
0:00:29.2]} 95... Kd8 {[%clk 0:00:41.3]} 96. Ke6 {[%clk 0:00:30.6]} 96... Kc7
{[%clk 0:00:43.1]} 97. Nd7 {[%clk 0:00:32.2]} 97... Kc6 {[%clk 0:00:43.5]} 98.
Bd3 {[%clk 0:00:33.4]} 98... Kc7 {[%clk 0:00:45.1]} 99. Ke7 {[%clk 0:00:34.3]}
99... Kc6 {[%clk 0:00:46.4]} 100. Bc4 {[%clk 0:00:35.7]} 100... Kc7 {[%clk
0:00:47.3]} 101. Bd5 {[%clk 0:00:37.1]} 101... Kc8 {[%clk 0:00:46.6]} 102. Kd6
{[%clk 0:00:38.4]} 102... Kd8 {[%clk 0:00:48]} 103. Bf7 {[%clk 0:00:39.9]}
103... Kc8 {[%clk 0:00:49.3]} 104. Nc5 {[%clk 0:00:41.8]} 104... Kd8 {[%clk
0:00:50.7]} 105. Nb7+ {[%clk 0:00:42.9]} 105... Kc8 {[%clk 0:00:52]} 106. Kc6
{[%clk 0:00:44.8]} 106... Kb8 {[%clk 0:00:53.7]} 107. Kb6 {[%clk 0:00:46.3]}
107... Kc8 {[%clk 0:00:55.2]} 108. Be6+ {[%clk 0:00:47.7]} 108... Kb8 {[%clk
0:00:56.6]} 109. Nc5 {[%clk 0:00:49.2]} 109... Ka8 {[%clk 0:00:57.9]} 110. Bf5
{[%clk 0:00:50.6]} 110... Kb8 {[%clk 0:00:59]} 111. Na6+ {[%clk 0:00:52.5]}
111... Ka8 {[%clk 0:01:00.5]} 112. Be4# {[%clk 0:00:54.4]} 1-0